bitfinex/quotes_SOLUSD_20251001
["timestamp","ask_amount","ask_price","bid_price","bid_amount"]
[1759285619947,11.96422549,210.15,210.13,37.3]
[1759285620163,0.67,210.14,210.11,79.1]
[1759285620467,0.67,210.14,210.01,4.96166785]
[1759285620468,1.51698167,210.12,210.02,0.63]
[1759285620685,1.51698167,210.1,210.02,0.63]
[1759285620888,0.67,210.09,210.03,33.28]
[1759285621167,0.67,210.09,210.03,33.91]
[1759285622259,0.67,210.08,210.03,33.91]
[1759285622473,4.76031798,210.07,210.04,0.63]
[1759285622687,16.66111295,210.07,210.04,0.63]
[1759285622986,16.66111295,210.07,210.01,0.2]
[1759285622987,0.67,210.14,210.05,33.91]
[1759285623150,0.67,210.14,210.06,0.63]
[1759285623461,0.67,210.13,210.07,33.28]
[1759285623659,0.67,210.12,210.07,33.28]
[1759285623860,2.37336679,210.15,210.07,33.28]
[1759285623861,0.67,210.11,210.07,33.28]
[1759285624090,0.67,210.1,210.07,33.28]
[1759285624592,4.75986481,210.09,210.07,33.28]
[1759285627672,0.67,210.08,210.07,33.28]
[1759285627894,4.75986481,210.09,210.07,33.28]
[1759285629169,11.89933682,210.1,210.07,33.28]
[1759285629376,0.67,210.09,210.07,33.28]
[1759285629883,0.67,210.09,210.08,37.1]
[1759285630280,5.42986481,210.09,210.08,37.1]
[1759285631167,4.75986481,210.09,210.08,70.38]
[1759285631375,12.56933682,210.1,210.08,70.38]
[1759285632386,17.32897508,210.1,210.08,70.38]
[1759285633279,0.67,210.09,210.08,70.38]
[1759285633862,17.32897508,210.1,210.08,70.38]
[1759285635103,4.75939438,210.12,210.09,0.63]
[1759285635401,23.78920744,210.18,210.1,33.28]
[1759285635402,4.75850582,210.15,210.1,33.28]
[1759285635701,4.75850582,210.15,210.11,33.91]
[1759285635899,4.75850582,210.15,210.12,33.91]
[1759285636197,4.75825538,210.17,210.13,33.91]
[1759285636519,4.75825538,210.17,210.14,33.91]
[1759285636668,4.75825538,210.17,210.15,0.63]
[1759285636874,4.75825538,210.17,210.16,33.28]
[1759285637095,16.65173784,210.19,210.16,33.28]
[1759285637398,17.32173784,210.19,210.16,33.28]
[1759285637597,16.65173784,210.19,210.16,33.28]
[1759285638092,16.65173784,210.19,210.16,33.91]
[1759285638330,16.65173784,210.19,210.16,33.28]
[1759285638507,17.33173784,210.19,210.16,33.28]
[1759285638984,0.68,210.18,210.16,33.28]
[1759285639184,4.758053,210.17,210.16,33.28]
[1759285639489,5.438053,210.17,210.16,33.28]
[1759285640578,16.65173784,210.19,210.16,33.28]
[1759285640785,17.33173784,210.19,210.16,33.28]
[1759285641109,0.68,210.18,210.16,33.28]
[1759285642511,4.758053,210.17,210.16,33.28]
[1759285643484,11.89413758,210.19,210.16,33.28]
[1759285643485,4.75760026,210.19,210.16,33.91]
[1759285643685,4.75760026,210.19,210.17,0.63]
[1759285643997,4.75760026,210.19,210.16,33.28]
[1759285644190,16.65160092,210.19,210.16,33.28]
[1759285644378,16.65160092,210.19,210.16,33.91]
[1759285644574,4.75737392,210.2,210.17,0.63]
[1759285645388,16.65080874,210.2,210.17,0.63]
[1759285645584,17.32080874,210.2,210.16,33.28]
[1759285646102,17.32080874,210.2,210.16,33.91]
[1759285646705,11.89343482,210.2,210.16,33.91]
[1759285647605,4.388738,210.16,210.12,13.59559401]
[1759285647907,4.388738,210.16,210.12,18.35474434]
[1759285648801,4.388738,210.16,210.13,33.26]
[1759285649111,4.388738,210.16,210.13,112.36]
[1759285649608,4.388738,210.16,210.14,13.59559401]
[1759285650409,4.388738,210.16,210.14,92.69559401]
[1759285650601,4.388738,210.16,210.14,79.1]
[1759285652308,4.388738,210.16,210.15,13.87991715]
[1759285652604,4.388738,210.16,210.15,19.55991215]
[1759285653202,4.388738,210.16,210.15,38.59841797]
[1759285653387,4.388738,210.16,210.15,72.84232702]
[1759285653784,4.7555782,210.28,210.19,13.59559401]
[1759285654012,4.7555782,210.28,210.2,33.54432314]
[1759285654598,5.4255782,210.28,210.2,33.54432314]
[1759285655316,5.4255782,210.28,210.2,38.3016558]
[1759285656415,5.4255782,210.28,210.22,13.59559401]
[1759285656592,5.4255782,210.28,210.23,33.26]
[1759285656793,0.67,210.27,210.23,33.26]
[1759285658091,5.42582585,210.27,210.23,33.26]
[1759285660310,0.67,210.26,210.22,13.59559401]
[1759285660617,3.04336679,210.25,210.23,33.26]
[1759285660791,0.67,210.24,210.23,33.26]
[1759285661113,21.47,210.24,210.21,37.1]
[1759285661298,0.67,210.23,210.21,37.1]
[1759285661715,0.67,210.22,210.21,37.1]
[1759285661898,0.67,210.22,210.21,74.18]
[1759285662215,0.67,210.22,210.21,107.42]
[1759285662216,5.42692132,210.22,210.21,107.42]
[1759285676511,25.55692132,210.22,210.21,107.42]
[1759285677404,26.21692132,210.22,210.21,107.42]
[1759285686339,26.21692132,210.22,210.21,70.32]
[1759285690338,61.89383122,210.22,210.16,37.08]
[1759285690548,20.8,210.19,210.17,70.32]
[1759285690739,0.66,210.18,210.17,70.32]
[1759285691132,5.41782662,210.18,210.17,70.32]
[1759285692933,4.75761517,210.19,210.17,70.32]
[1759285693534,4.75761517,210.19,210.17,149.42]
[1759285694343,4.7569308,210.22,210.17,149.42]
[1759285694735,5.4169308,210.22,210.17,149.42]
[1759285694936,16.6492341,210.22,210.17,149.42]
[1759285695131,0.66,210.21,210.17,149.42]
[1759285695929,4.75737392,210.2,210.17,149.42]
[1759285697538,5.41711392,210.22,210.17,149.42]
[1759285697751,0.66,210.21,210.17,149.42]
[1759285698365,4.75711392,210.22,210.17,149.42]
[1759285698534,0.72,210.21,210.17,149.42]
[1759285698733,4.75711392,210.22,210.17,149.42]
[1759285698927,4.75737392,210.2,210.17,149.42]
[1759285702546,4.75692132,210.22,210.17,149.42]
[1759285702944,5.47692132,210.22,210.17,149.42]
[1759285704359,4.75737392,210.2,210.17,149.42]
[1759285705650,4.75692132,210.22,210.17,149.42]
[1759285705879,5.47692132,210.22,210.17,149.42]
[1759285706536,4.75692132,210.22,210.17,149.42]
[1759285707250,5.47692132,210.22,210.17,149.42]
[1759285707453,5.47692132,210.22,210.18,37.08]
[1759285707649,5.47692132,210.22,210.19,33.24]
[1759285708158,4.75692132,210.22,210.19,33.24]
[1759285708367,5.47692132,210.22,210.19,33.24]
[1759285708542,4.75692132,210.22,210.19,33.24]
[1759285709162,0.72,210.21,210.19,33.24]
[1759285709365,4.75692132,210.22,210.19,33.24]
[1759285709569,5.47692132,210.22,210.19,33.24]
[1759285710568,4.75737392,210.2,210.19,33.24]
[1759285712766,4.7571862,210.21,210.19,33.24]
[1759285712959,5.4771862,210.21,210.19,33.24]
[1759285713873,4.75692132,210.22,210.19,33.24]
[1759285714246,5.47692132,210.22,210.19,33.24]
[1759285714772,0.72,210.21,210.19,33.24]
[1759285715160,4.75692132,210.22,210.19,33.24]
[1759285715472,4.75737392,210.2,210.19,33.24]
[1759285718061,5.47692132,210.22,210.19,33.24]
[1759285718876,0.72,210.21,210.19,33.24]
[1759285719478,4.75737392,210.2,210.19,33.24]
[1759285720913,0.72,210.21,210.19,33.24]
[1759285720914,32.69182142,210.23,210.19,33.24]
[1759285721058,4.75692132,210.22,210.19,33.24]
[1759285721254,5.47692132,210.22,210.19,33.24]
[1759285721876,5.47692132,210.22,210.2,37.08]
[1759285721877,0.72,210.21,210.2,37.08]
[1759285722064,5.47714761,210.21,210.2,70.3]
[1759285722572,4.75714761,210.21,210.2,70.3]
[1759285723750,20.8,210.23,210.2,149.4]
[1759285724158,25.55672954,210.23,210.2,149.4]
[1759285724355,26.27672954,210.23,210.2,149.4]
[1759285727581,0.72,210.22,210.2,149.4]
[1759285727892,0.72,210.21,210.2,116.18]
[1759285728085,21.52,210.21,210.2,149.4]
[1759285728420,26.27714761,210.21,210.2,70.3]
[1759285733198,26.27714761,210.21,210.2,37.08]
[1759285733407,39.68671258,210.21,210.11,3.97443326]
[1759285733702,1.51669594,210.19,210.12,13.59559401]
[1759285733896,0.66,210.18,210.12,13.59559401]
[1759285734196,0.66,210.17,210.12,13.59559401]
[1759285734403,0.66,210.16,210.12,13.59559401]
[1759285734602,0.66,210.15,210.1,3.97443326]
[1759285734783,0.66,210.15,210.11,33.22]
[1759285735097,1.51669594,210.19,210.09,17.57002727]
[1759285735098,4.75873227,210.14,210.09,17.57002727]
[1759285735395,4.75873227,210.14,210.1,33.22]
[1759285735396,0.66,210.13,210.1,33.22]
[1759285735592,25.55873227,210.14,210.1,33.22]
[1759285735593,0.66,210.12,210.1,33.22]
[1759285735793,23.79060825,210.17,210.1,33.22]
[1759285735794,11.89559772,210.17,210.1,33.22]
[1759285735982,12.55559772,210.17,210.1,33.22]
[1759285736792,16.65365072,210.17,210.1,33.22]
[1759285736991,0.66,210.16,210.11,33.22]
[1759285737198,18.17034666,210.17,210.11,33.22]
[1759285737199,0.66,210.15,210.11,33.22]
[1759285737578,0.66,210.14,210.11,33.22]
[1759285737775,4.758053,210.17,210.12,13.59559401]
[1759285737985,5.418053,210.17,210.13,33.22]
[1759285738195,0.66,210.16,210.13,33.22]
[1759285738988,4.75850582,210.15,210.13,33.22]
[1759285739912,4.75850582,210.15,210.14,37.1]
[1759285740733,5.41850582,210.15,210.14,37.1]
[1759285752425,17.31477039,210.15,210.09,13.59559401]
[1759285752725,17.31477039,210.15,210.14,37.1]
[1759285752906,17.31477039,210.15,210.14,70.32]
[1759285761408,25.55850582,210.15,210.14,70.32]
[1759285774524,26.26850582,210.15,210.14,70.32]
[1759285775828,25.55850582,210.15,210.14,70.32]
[1759285777028,26.26850582,210.15,210.14,70.32]
[1759285777242,25.55850582,210.15,210.14,70.32]
[1759285777618,0.71,210.2,210.14,70.32]
[1759285778518,20.8,210.18,210.14,70.32]
[1759285778718,0.71,210.17,210.14,37.1]
[1759285778944,0.71,210.17,210.15,33.22]
[1759285778945,0.71,210.16,210.15,33.22]
[1759285779821,5.4682794,210.16,210.15,33.22]
[1759285780222,5.4682794,210.16,210.14,37.1]
[1759285780537,4.7582794,210.16,210.15,33.22]
[1759285781926,4.758053,210.17,210.15,33.22]
[1759285782448,0.71,210.16,210.15,33.22]
[1759285783935,5.4682794,210.16,210.15,33.22]
[1759285793335,4.7582794,210.16,210.15,33.22]
[1759285794447,4.758053,210.17,210.15,33.22]
[1759285795979,5.478053,210.17,210.15,33.22]
[1759285796660,4.75750293,210.2,210.15,33.22]
[1759285797568,16.65093775,210.2,210.15,33.22]
[1759285799972,17.37093775,210.2,210.15,33.22]
[1759285800367,25.55692132,210.22,210.15,33.22]
[1759285800757,25.55692132,210.22,210.15,37.97841092]
[1759285802165,11.890514,210.26,210.16,19.57749581]
[1759285802479,11.890514,210.26,210.18,18.3532787]
[1759285802676,20.8,210.26,210.19,33.2]
[1759285803361,0.72,210.25,210.19,33.2]
[1759285803554,0.72,210.24,210.19,33.2]
[1759285803876,0.72,210.23,210.19,33.2]
[1759285804085,20.8,210.26,210.19,33.2]
[1759285804265,0.72,210.22,210.19,33.2]
[1759285804582,0.72,210.21,210.19,33.2]
[1759285805679,0.72,210.23,210.19,33.2]
[1759285806170,0.72,210.22,210.19,33.2]
[1759285806571,5.47708884,210.22,210.19,33.2]
[1759285806875,4.75708884,210.22,210.19,33.2]
[1759285807182,5.47708884,210.22,210.19,33.2]
[1759285808575,1.65853585,210.29,210.21,4.75714761]
[1759285808576,4.755564,210.28,210.21,4.75714761]
[1759285808756,4.755564,210.28,210.22,33.2]
[1759285809083,13.9802912,210.36,210.22,33.2]
[1759285809084,0.72,210.32,210.23,13.59559401]
[1759285809258,0.72,210.34,210.23,19.57749581]
[1759285809461,0.72,210.33,210.23,19.57749581]
[1759285809787,0.28432314,210.37,210.23,19.57749581]
[1759285809969,0.72,210.32,210.23,19.57749581]
[1759285810161,0.72,210.31,210.23,19.57749581]
[1759285810866,4.75511174,210.3,210.23,24.33410587]
[1759285811251,4.75465956,210.32,210.23,24.33410587]
[1759285811454,0.2,210.38,210.28,0.28432314]
[1759285811759,0.2,210.38,210.35,20.8]
[1759285811960,0.2,210.38,210.37,13.59559401]
[1759285813178,0.2,210.38,210.36,76.2419018]
[1759285813370,0.2,210.38,210.37,13.59559401]
[1759285816663,0.2,210.38,210.37,18.3491235]
[1759285817284,0.2,210.38,210.36,70.26]
[1759285817487,5.67330354,210.38,210.36,70.26]
[1759285817988,5.67330354,210.38,210.36,107.34]
[1759285819870,0.67,210.37,210.36,107.34]
[1759285821089,4.95330354,210.38,210.36,107.34]
[1759285821290,5.62330354,210.38,210.36,107.34]
[1759285821864,0.67,210.37,210.36,74.16]
[1759285822084,0.67,210.37,210.36,37.06]
[1759285822291,20.8,210.35,210.18,4.75782662]
[1759285822487,0.67,210.34,210.18,4.75782662]
[1759285822692,0.67,210.33,210.24,13.59559401]
[1759285822889,22.31637428,210.35,210.24,13.59559401]
[1759285822890,0.67,210.32,210.24,13.59559401]
[1759285823099,0.72,210.31,210.24,13.59559401]
[1759285823272,4.75533786,210.29,210.25,33.22]
[1759285823473,5.47533786,210.29,210.25,33.22]
[1759285825390,11.88688378,210.32,210.25,33.22]
[1759285825598,0.72,210.28,210.25,33.22]
[1759285826089,0.72,210.3,210.25,33.22]
[1759285826305,0.72,210.29,210.25,33.22]
[1759285826478,5.475564,210.28,210.25,33.22]
[1759285827201,0.72,210.27,210.25,33.22]
[1759285827403,0.72,210.26,210.25,33.22]
[1759285828572,5.47601636,210.26,210.25,33.22]
[1759285828969,17.36605726,210.26,210.12,13.59559401]
[1759285829200,0.72,210.25,210.11,4.75941173]
[1759285829497,2.23637428,210.24,210.1,10.74152998]
[1759285829680,0.72,210.23,210.11,13.87991715]
[1759285829999,16.64605726,210.26,210.13,13.73775558]
[1759285830197,0.72,210.22,210.15,13.59559401]
[1759285830685,4.75714761,210.21,210.15,13.59559401]
[1759285832393,0.72,210.2,210.14,33.28]
[1759285832594,0.72,210.19,210.14,33.28]
[1759285832783,0.72,210.18,210.14,33.28]
[1759285833099,16.65001664,210.21,210.14,33.28]
[1759285833292,0.72,210.2,210.14,33.28]
[1759285834204,4.75760026,210.19,210.14,33.28]
[1759285834383,5.47760026,210.19,210.14,33.28]
[1759285835201,0.72,210.18,210.14,33.28]
[1759285835401,0.72,210.17,210.12,153.22]
[1759285835702,0.72,210.16,210.15,33.28]
[1759285836191,0.72,210.16,210.12,74.12]
[1759285836390,21.08432314,210.21,210.12,74.12]
[1759285836391,0.72,210.15,210.12,74.12]
[1759285836599,0.72,210.14,210.12,74.12]
[1759285836797,0.72,210.13,210.12,74.12]
[1759285836998,0.72,210.15,210.12,74.12]
[1759285837307,4.75895873,210.13,210.12,74.12]
[1759285837611,5.47895873,210.13,210.12,107.42]
[1759285838403,42.94047536,210.87,210.12,107.42]
[1759285838404,20.8,210.17,210.12,107.42]
[1759285838604,0.72,210.16,210.12,107.42]
[1759285838808,0.72,210.15,210.12,107.42]
[1759285839107,0.72,210.14,210.12,107.42]
[1759285839319,16.6527168,210.18,210.12,107.42]
[1759285839320,5.47895873,210.13,210.12,107.42]
[1759285842086,38.17635557,210.13,210.12,37.08]
[1759285842286,39.69272985,210.13,210.12,70.36]
[1759285842690,39.69272985,210.13,210.02,13.59559401]
[1759285842893,20.8,210.1,210.01,13.79559401]
[1759285843101,0.72,210.09,210.01,13.79559401]
[1759285843309,0.72,210.08,210.01,13.79559401]
[1759285843494,0.72,210.07,210.01,0.2]
[1759285843704,4.7605446,210.06,210.01,0.2]
[1759285843905,5.4805446,210.06,210.02,33.3]
[1759285844613,4.76024191,210.08,210.02,33.3]
[1759285845689,4.75986481,210.09,210.02,33.3]
[1759285848601,16.65952685,210.09,210.02,33.3]
[1759285849716,0.72,210.08,210.02,33.3]
[1759285849901,0.72,210.07,210.03,37.1]
[1759285850103,0.72,210.06,210.03,37.1]
[1759285850899,4.76077124,210.05,210.03,37.1]
[1759285851118,5.48077124,210.05,210.03,37.1]
[1759285851622,4.76077124,210.05,210.03,37.1]
[1759285851802,5.48077124,210.05,210.03,37.1]
[1759285852223,0.72,210.04,210.03,37.1]
[1759285853719,5.4809979,210.04,210.03,37.1]
[1759285854598,4.7609979,210.04,210.03,37.1]
[1759285854798,5.4209979,210.04,210.03,37.1]
[1759285860023,4.76072902,210.06,210.03,37.1]
[1759285860222,5.42072902,210.06,210.04,33.3]
[1759285860526,20.8,210.03,210.0,1388.43360529]
[1759285860732,5.42145129,210.02,210.01,33.3]
[1759285860908,5.42145129,210.02,210.0,1388.43360529]
[1759285861114,0.66,210.01,210.0,1364.24622578]
[1759285861421,0.66,210.01,210.0,1308.01045022]
[1759285861610,21.46,210.01,210.0,1308.01045022]
[1759285862027,21.46,210.01,210.0,1341.49045022]
[1759285862528,22.97637428,210.01,210.0,1341.49045022]
[1759285862726,27.73805229,210.01,210.0,1341.49045022]
[1759285865609,28.02237543,210.01,210.0,1247.99956072]
[1759285866516,28.02237543,210.01,210.0,1176.39385122]
[1759285867207,28.02237543,210.01,210.0,1143.0713644]
[1759285867414,28.02237543,210.01,210.0,1117.44803864]
[1759285867613,28.02237543,210.01,210.0,1090.34547697]
[1759285867831,28.02237543,210.01,210.0,1035.10866592]
[1759285868026,26.50600115,210.01,210.0,1035.10866592]
[1759285868234,28.88216002,210.01,210.0,1035.10866592]
[1759285868439,28.88216002,210.01,210.0,1009.463912]
[1759285868630,28.88216002,210.01,210.0,976.30189864]
[1759285869820,28.88216002,210.01,210.0,950.44193273]
[1759285870018,28.88216002,210.01,210.0,909.7269371]
[1759285870228,28.88216002,210.01,210.0,842.11803776]
[1759285870419,28.88216002,210.01,210.0,775.66905679]
[1759285870626,28.88216002,210.01,210.0,725.72524734]
[1759285870820,28.88216002,210.01,210.0,683.38428493]
[1759285871023,28.88216002,210.01,210.0,646.45090622]
[1759285871221,28.88216002,210.01,210.0,572.05715249]
[1759285871423,28.88216002,210.01,210.0,544.15769564]
[1759285872427,28.88216002,210.01,210.0,484.12887016]
[1759285872628,28.88216002,210.01,210.0,415.65118474]
[1759285872837,28.88216002,210.01,210.0,350.24216897]
[1759285873133,28.88216002,210.01,210.0,286.96382645]
[1759285873640,44.8539129,210.01,210.0,253.48382645]
[1759285873825,44.8539129,210.01,210.0,286.92382645]
[1759285874146,42.47775403,210.01,210.0,286.92382645]
[1759285875118,40.10159516,210.01,210.0,253.48382645]
[1759285875328,44.8539129,210.01,210.0,287.00382645]
[1759285879346,64.82391289,210.01,210.0,287.00382645]
[1759285879550,64.82391289,210.01,210.0,258.4276328]
[1759285879861,64.82391289,210.01,210.0,199.4134328]
[1759285879862,69.19885235,210.01,210.0,199.4134328]
[1759285880148,69.19885235,210.01,210.0,204.35723915]
[1759285880451,69.19885235,210.01,210.0,175.7810455]
[1759285880951,69.19885235,210.01,210.0,147.20485185]
[1759285881245,69.19885235,210.01,210.0,118.3444582]
[1759285881447,69.19885235,210.01,210.0,94.5744582]
[1759285881629,69.19885235,210.01,210.0,63.51326455]
[1759285881830,13.59559401,209.9,209.81,37.14]
[1759285882030,13.59559401,209.9,209.73,13.59559401]
[1759285882031,2.37615887,209.82,209.73,13.59559401]
[1759285882239,2.37615887,209.81,209.79,1e-08]
[1759285882441,2.37615887,209.8,209.79,1e-08]
[1759285882749,25.56644423,209.8,209.79,0.66000001]
[1759285883055,25.56644423,209.8,209.79,20.14000001]
[1759285883238,37.48255481,209.8,209.68,13.59559401]
[1759285883434,20.8,209.77,209.68,13.59559401]
[1759285884137,20.8,209.74,209.65,13.59559401]
[1759285884332,20.8,209.74,209.66,33.56]
[1759285884535,20.8,209.74,209.68,0.28432314]
[1759285884733,16.68609811,209.76,209.7,13.59559401]
[1759285884933,4.76707316,209.78,209.7,13.59559401]
[1759285885139,20.8,209.77,209.7,13.59559401]
[1759285885338,20.8,209.77,209.71,0.72]
[1759285885546,20.8,209.77,209.73,13.59559401]
[1759285885746,7.14323203,209.78,209.73,14.31559401]
[1759285885948,19.06047866,209.78,209.73,14.31559401]
[1759285886334,16.68431979,209.78,209.74,0.72]
[1759285886534,16.68431979,209.78,209.75,33.54]
[1759285887052,19.06047866,209.78,209.75,33.54]
[1759285887554,20.8,209.75,209.7,0.72]
[1759285887737,23.17615887,209.75,209.71,33.54]
[1759285888050,20.8,209.75,209.71,34.26]
[1759285888257,2.37615887,209.74,209.71,34.26]
[1759285888435,20.8,209.75,209.71,34.26]
[1759285888436,20.8,209.75,209.72,0.72]
[1759285888635,23.17615887,209.75,209.72,0.72]
[1759285888852,23.17615887,209.75,209.71,33.54]
[1759285889151,16.68732716,209.74,209.71,33.54]
[1759285889555,23.17615887,209.72,209.71,33.54]
[1759285889946,20.8,209.72,209.71,70.7]
[1759285891457,27.46759507,209.72,209.71,70.7]
[1759285891855,4.2914362,209.72,209.71,70.7]
[1759285892449,25.0914362,209.72,209.71,70.7]
[1759285892643,4.2914362,209.72,209.71,70.7]
[1759285892847,25.0914362,209.72,209.71,70.7]
[1759285895673,4.2914362,209.72,209.71,71.42]
[1759285895877,16.21054638,209.74,209.71,71.42]
[1759285896555,2.37615887,209.73,209.71,70.7]
[1759285896862,16.21054638,209.74,209.72,0.72]
[1759285897063,16.21054638,209.74,209.73,33.58]
[1759285898366,4.29061784,209.76,209.73,34.3]
[1759285898689,4.29061784,209.76,209.74,0.72]
[1759285898967,25.09061784,209.76,209.75,34.32]
[1759285899771,4.29050933,209.77,209.75,34.32]
[1759285900064,4.29050933,209.77,209.76,14.31559401]
[1759285900262,10.72509717,209.79,209.76,14.31559401]
[1759285900472,10.72509717,209.79,209.77,33.6]
[1759285900866,4.28959534,209.81,209.77,34.32]
[1759285901170,15.01358371,209.81,209.77,34.32]
[1759285901568,15.01358371,209.81,209.77,33.6]
[1759285902559,15.01358371,209.81,209.78,0.72]
[1759285902761,15.01358371,209.81,209.79,33.58]
[1759285906854,20.8,209.78,209.71,37.16]
[1759285907154,2.37615887,209.77,209.72,47.89559401]
[1759285907462,21.52,209.78,209.74,13.59559401]
[1759285907463,20.8,209.78,209.74,13.59559401]
[1759285907669,15.01358371,209.81,209.75,34.3]
[1759285907670,2.37615887,209.8,209.75,34.3]
[1759285908275,3.09615887,209.8,209.75,34.3]
[1759285908650,15.01501501,209.79,209.75,33.58]
[1759285908851,15.01501501,209.79,209.75,34.3]
[1759285909048,15.01501501,209.79,209.75,33.58]
[1759285909352,15.73501501,209.79,209.75,33.58]
[1759285909972,17.39117388,209.79,209.75,33.58]
[1759285910176,0.72,209.78,209.75,33.58]
[1759285910377,3.09615887,209.78,209.75,33.58]
[1759285910758,4.2904133,209.77,209.75,33.58]
[1759285913074,20.8,209.79,209.76,14.31559401]
[1759285913384,20.8,209.79,209.77,33.54]
[1759285913683,15.01429932,209.8,209.77,33.54]
[1759285913978,15.01429932,209.8,209.77,34.24]
[1759285914971,10.72449952,209.8,209.77,34.24]
[1759285915559,0.68,209.79,209.77,33.54]
[1759285915972,23.85615887,209.79,209.77,33.54]
[1759285916161,0.68,209.78,209.77,33.54]
[1759285916357,21.48,209.78,209.77,33.54]
[1759285917082,25.77020879,209.78,209.77,33.54]
[1759285917281,18.07188963,209.78,209.71,37.16]
[1759285917491,2.37615887,209.74,209.71,37.16]
[1759285917782,3.05615887,209.73,209.71,37.16]
[1759285917970,3.05615887,209.72,209.71,37.16]
[1759285918484,3.05615887,209.72,209.71,70.74]
[1759285918983,2.37615887,209.72,209.71,70.74]
[1759285919162,20.8,209.72,209.71,70.74]
[1759285919365,21.48,209.72,209.71,70.74]
[1759285920686,28.14759507,209.72,209.71,70.74]
[1759285921462,38.87618557,209.72,209.56,19.05170198]
[1759285921669,2.37615887,209.7,209.61,13.59559401]
[1759285921875,3.05615887,209.71,209.63,13.59559401]
[1759285922073,3.05615887,209.71,209.65,13.59559401]
[1759285922681,3.05615887,209.71,209.66,33.58]
[1759285922886,20.8,209.68,209.66,34.28]
[1759285924182,20.8,209.68,209.66,33.58]
[1759285925180,4.29245957,209.67,209.66,33.58]
[1759285925889,4.29245957,209.67,209.66,34.28]
[1759285926193,4.29245957,209.67,209.66,33.58]
[1759285927479,4.29221626,209.69,209.67,13.59559401]
[1759285927784,4.29221626,209.69,209.68,47.13559401]
[1759285929199,4.29184549,209.7,209.68,47.13559401]
[1759285929397,4.97184549,209.7,209.68,47.13559401]
[1759285929978,4.97184549,209.7,209.69,37.18]
[1759285930479,6.49644777,209.7,209.68,33.54]
[1759285930678,0.68,209.69,209.68,33.54]
[1759285931481,4.29184549,209.7,209.68,33.54]
[1759285932199,4.97184549,209.7,209.68,33.54]
[1759285933981,4.29184549,209.7,209.68,33.54]
[1759285934383,20.8,209.69,209.68,33.54]
[1759285935100,21.48,209.69,209.64,13.59559401]
[1759285935315,0.68,209.68,209.63,13.59559401]
[1759285935489,0.68,209.68,209.63,14.29559401]
[1759285935692,15.02360851,209.67,209.64,0.7]
[1759285935907,15.02360851,209.67,209.59,0.14216157]
[1759285936110,15.02360851,209.67,209.61,13.59559401]
[1759285936288,15.02360851,209.67,209.62,34.26]
[1759285936482,15.02360851,209.67,209.63,14.29559401]
[1759285936690,15.02360851,209.67,209.65,13.59559401]
[1759285936883,15.02360851,209.67,209.66,33.56]
[1759285937506,4.29245957,209.67,209.66,34.26]
[1759285937817,31.52998914,209.7,209.66,34.26]
[1759285937818,15.02183463,209.7,209.66,33.56]
[1759285937984,15.70183463,209.7,209.66,33.56]
[1759285938186,0.68,209.69,209.66,33.56]
[1759285938597,15.02183463,209.7,209.66,33.56]
[1759285938814,0.68,209.69,209.66,33.56]
[1759285939309,0.68,209.68,209.66,33.56]
[1759285939890,4.29245957,209.67,209.66,33.56]
[1759285940204,4.29245957,209.67,209.66,70.74]
[1759285941880,15.02217558,209.69,209.66,70.74]
[1759285942110,15.70217558,209.69,209.66,70.74]
[1759285942295,15.02217558,209.69,209.66,70.74]